[Event "Titled Tuesday Blitz April 25 Early 2023"]
[White "BenchGM"]
[Black "Camacho Collados, Jose"]
[BlackFideId "2265427"]
[WhiteElo "2407"]
[BlackElo "2198"]
[Result "0-1"]
[Round "11"]
[TimeControl "180+2"]
[Date "2023.04.25"]
[WhiteClock "0:00:01"]
[BlackClock "0:00:02"]

1. d4 {[%clk 0:03:00]}  Nf6 {[%clk 0:02:59]} 2. c4 {[%clk 0:03:00]}  e6 {[%clk 0:02:58]} 3. g3 {[%clk 0:03:00]}  Bb4+ {[%clk 0:02:58]} 4. Nd2 {[%clk 0:02:59]}  O-O {[%clk 0:02:56]} 5. Bg2 {[%clk 0:02:59]}  d5 {[%clk 0:02:56]} 6. Nf3 {[%clk 0:02:59]}  dxc4 {[%clk 0:02:50]} 7. Qc2 {[%clk 0:02:58]}  c5 {[%clk 0:02:48]} 8. O-O {[%clk 0:02:50]}  cxd4 {[%clk 0:02:46]} 9. Nxc4 {[%clk 0:02:50]}  Nc6 {[%clk 0:02:45]} 10. Rd1 {[%clk 0:02:47]}  Qe7 {[%clk 0:02:41]} 11. a3 {[%clk 0:02:45]}  Bc5 {[%clk 0:02:33]} 12. b4 {[%clk 0:02:45]}  Bb6 {[%clk 0:02:31]} 13. b5 {[%clk 0:02:34]}  Na5 {[%clk 0:02:25]} 14. Nxb6 {[%clk 0:02:32]}  axb6 {[%clk 0:02:26]} 15. a4 {[%clk 0:02:25]}  e5 {[%clk 0:02:22]} 16. Ba3 {[%clk 0:02:24]}  Qe6 {[%clk 0:02:12]} 17. Bxf8 {[%clk 0:02:24]}  Kxf8 {[%clk 0:02:13]} 18. Qc7 {[%clk 0:02:18]}  Nb3 {[%clk 0:01:39]} 19. Rab1 {[%clk 0:01:55]}  Nc5 {[%clk 0:01:37]} 20. Qxe5 {[%clk 0:01:39]}  Qxe5 {[%clk 0:01:31]} 21. Nxe5 {[%clk 0:01:39]}  Rxa4 {[%clk 0:01:31]} 22. e3 {[%clk 0:01:33]}  Bf5 {[%clk 0:01:10]} 23. exd4 {[%clk 0:01:25]}  Bxb1 {[%clk 0:01:07]} 24. dxc5 {[%clk 0:01:26]}  Bc2 {[%clk 0:00:56]} 25. Rc1 {[%clk 0:01:25]}  bxc5 {[%clk 0:00:43]} 26. Rxc2 {[%clk 0:01:21]}  Ra1+ {[%clk 0:00:43]} 27. Bf1 {[%clk 0:01:20]}  b6 {[%clk 0:00:40]} 28. Nc4 {[%clk 0:01:16]}  Nd5 {[%clk 0:00:39]} 29. Rd2 {[%clk 0:01:15]}  Nc3 {[%clk 0:00:38]} 30. Nxb6 {[%clk 0:01:11]}  Nxb5 {[%clk 0:00:37]} 31. Nd7+ {[%clk 0:01:09]}  Ke7 {[%clk 0:00:36]} 32. Nxc5 {[%clk 0:01:09]}  h5 {[%clk 0:00:32]} 33. Nb3 {[%clk 0:01:09]}  Rb1 {[%clk 0:00:29]} 34. Nd4 {[%clk 0:00:57]}  Nc3 {[%clk 0:00:29]} 35. Nf5+ {[%clk 0:00:52]}  Kf6 {[%clk 0:00:29]} 36. Ne3 {[%clk 0:00:53]}  Kg6 {[%clk 0:00:16]} 37. Kg2 {[%clk 0:00:51]}  Kf6 {[%clk 0:00:09]} 38. Nd5+ {[%clk 0:00:48]}  Nxd5 {[%clk 0:00:09]} 39. Rxd5 {[%clk 0:00:49]}  g6 {[%clk 0:00:09]} 40. Rd7 {[%clk 0:00:45]}  Ke6 {[%clk 0:00:09]} 41. Ra7 {[%clk 0:00:45]}  Rc1 {[%clk 0:00:09]} 42. Bd3 {[%clk 0:00:41]}  Rc3 {[%clk 0:00:08]} 43. Be2 {[%clk 0:00:40]}  Rc2 {[%clk 0:00:08]} 44. Bd1 {[%clk 0:00:39]}  Rc3 {[%clk 0:00:08]} 45. Ra6+ {[%clk 0:00:36]}  Ke7 {[%clk 0:00:07]} 46. h4 {[%clk 0:00:29]}  Rd3 {[%clk 0:00:07]} 47. Be2 {[%clk 0:00:26]}  Rc3 {[%clk 0:00:07]} 48. Ra4 {[%clk 0:00:25]}  Kf6 {[%clk 0:00:07]} 49. Bc4 {[%clk 0:00:25]}  Rc2 {[%clk 0:00:03]} 50. Ba2 {[%clk 0:00:24]}  Rc7 {[%clk 0:00:02]} 51. Kf3 {[%clk 0:00:22]}  Kg7 {[%clk 0:00:02]} 52. Bd5 {[%clk 0:00:19]}  Rc3+ {[%clk 0:00:02]} 53. Kf4 {[%clk 0:00:18]}  Rc7 {[%clk 0:00:03]} 54. f3 {[%clk 0:00:17]}  f6 {[%clk 0:00:02]} 55. Rb4 {[%clk 0:00:14]}  Rc3 {[%clk 0:00:03]} 56. Rb7+ {[%clk 0:00:13]}  Kh6 {[%clk 0:00:03]} 57. Rf7 {[%clk 0:00:10]}  g5+ {[%clk 0:00:03]} 58. hxg5+ {[%clk 0:00:09]}  fxg5+ {[%clk 0:00:04]} 59. Kf5 {[%clk 0:00:09]}  Rc5 {[%clk 0:00:04]} 60. Ke5 {[%clk 0:00:08]}  h4 {[%clk 0:00:03]} 61. Rf6+ {[%clk 0:00:07]}  Kg7 {[%clk 0:00:03]} 62. Rf5 {[%clk 0:00:03]}  Kg6 {[%clk 0:00:02]} 63. Rf6+ {[%clk 0:00:02]}  Kg7 {[%clk 0:00:02]} 64. Rf5 {[%clk 0:00:01]}  Kg6 {[%clk 0:00:02]} 65. gxh4 {[%clk 0:00:01]}  gxh4 {[%clk 0:00:03]} 66. Rf4 {[%clk 0:00:01]}  h3 {[%clk 0:00:03]} 67. Rg4+ {[%clk 0:00:01]}  Kh5 {[%clk 0:00:03]} 68. Kd4 {[%clk 0:00:01]}  h2 {[%clk 0:00:02]} 0-1


[Site "https://www.chess.com"]

[Event "Titled Tuesday Blitz April 25 Early 2023"]
[White "Gutkin, Ilya"]
[Black "Devaev, Alexander"]
[WhiteFideId "16203470"]
[BlackFideId "4169395"]
[WhiteElo "2265"]
[BlackElo "2204"]
[Result "1-0"]
[Round "11"]
[TimeControl "180+2"]
[Date "2023.04.25"]
[WhiteClock "0:00:36"]
[BlackClock "0:00:12"]

1. e4 {[%clk 0:03:00]}  c6 {[%clk 0:02:58]} 2. d4 {[%clk 0:03:00]}  d5 {[%clk 0:02:58]} 3. Nc3 {[%clk 0:03:01]}  dxe4 {[%clk 0:02:56]} 4. Nxe4 {[%clk 0:03:02]}  Bf5 {[%clk 0:02:57]} 5. Ng3 {[%clk 0:03:02]}  Bg6 {[%clk 0:02:57]} 6. Nf3 {[%clk 0:03:01]}  Nd7 {[%clk 0:02:57]} 7. h4 {[%clk 0:03:00]}  h6 {[%clk 0:02:56]} 8. h5 {[%clk 0:03:00]}  Bh7 {[%clk 0:02:57]} 9. Bd3 {[%clk 0:03:01]}  Bxd3 {[%clk 0:02:58]} 10. Qxd3 {[%clk 0:03:02]}  Qc7 {[%clk 0:02:58]} 11. Bd2 {[%clk 0:02:58]}  e6 {[%clk 0:02:59]} 12. O-O-O {[%clk 0:02:54]}  Ngf6 {[%clk 0:02:59]} 13. Kb1 {[%clk 0:02:53]}  O-O-O {[%clk 0:03:00]} 14. c4 {[%clk 0:02:47]}  c5 {[%clk 0:02:59]} 15. Bc3 {[%clk 0:02:46]}  cxd4 {[%clk 0:02:59]} 16. Qxd4 {[%clk 0:02:35]}  Bc5 {[%clk 0:02:54]} 17. Qd2 {[%clk 0:02:33]}  Nb6 {[%clk 0:02:27]} 18. Qe2 {[%clk 0:02:25]}  Na4 {[%clk 0:02:27]} 19. Be5 {[%clk 0:02:21]}  Qb6 {[%clk 0:02:28]} 20. Qc2 {[%clk 0:02:10]}  Bxf2 {[%clk 0:01:45]} 21. Qxa4 {[%clk 0:02:03]}  Bxg3 {[%clk 0:01:13]} 22. Bxg3 {[%clk 0:02:04]}  Ne4 {[%clk 0:01:14]} 23. Be1 {[%clk 0:01:47]}  Rxd1+ {[%clk 0:01:10]} 24. Qxd1 {[%clk 0:01:47]}  Rd8 {[%clk 0:01:11]} 25. Qc2 {[%clk 0:01:47]}  f5 {[%clk 0:01:11]} 26. Bc3 {[%clk 0:01:41]}  Qc7 {[%clk 0:00:53]} 27. Be5 {[%clk 0:01:37]}  Qd7 {[%clk 0:00:50]} 28. a3 {[%clk 0:01:31]}  b6 {[%clk 0:00:50]} 29. Re1 {[%clk 0:01:19]}  Nc5 {[%clk 0:00:42]} 30. Nd4 {[%clk 0:01:05]}  Qf7 {[%clk 0:00:25]} 31. Nb5 {[%clk 0:01:01]}  Nd3 {[%clk 0:00:16]} 32. Re3 {[%clk 0:00:51]}  Nxe5 {[%clk 0:00:15]} 33. Rxe5 {[%clk 0:00:52]}  Qxh5 {[%clk 0:00:15]} 34. Rxe6 {[%clk 0:00:47]}  Rd1+ {[%clk 0:00:16]} 35. Ka2 {[%clk 0:00:45]}  Rd7 {[%clk 0:00:17]} 36. Rd6 {[%clk 0:00:40]}  Qf7 {[%clk 0:00:11]} 37. Rxd7 {[%clk 0:00:37]}  Qxd7 {[%clk 0:00:12]} 38. Qxf5 {[%clk 0:00:35]}  Qxf5 {[%clk 0:00:11]} 39. Nd6+ {[%clk 0:00:35]}  Kd7 {[%clk 0:00:12]} 40. Nxf5 {[%clk 0:00:36]} 1-0


[Site "https://www.chess.com"]

[Event "Titled Tuesday Blitz April 25 Early 2023"]
[White "Goltseva, Ekaterina"]
[Black "Lopez Del Alamo, Antonio"]
[WhiteFideId "24173770"]
[BlackFideId "2227339"]
[WhiteElo "2200"]
[BlackElo "2175"]
[Result "1-0"]
[Round "11"]
[TimeControl "180+2"]
[Date "2023.04.25"]
[WhiteClock "0:00:34"]
[BlackClock "0:01:11"]

1. d4 {[%clk 0:03:00]}  Nf6 {[%clk 0:02:58]} 2. c4 {[%clk 0:02:57]}  g6 {[%clk 0:02:58]} 3. Nc3 {[%clk 0:02:45]}  Bg7 {[%clk 0:02:57]} 4. e4 {[%clk 0:02:39]}  d6 {[%clk 0:02:56]} 5. Nge2 {[%clk 0:02:38]}  O-O {[%clk 0:02:56]} 6. Ng3 {[%clk 0:02:34]}  c5 {[%clk 0:02:55]} 7. d5 {[%clk 0:02:34]}  e6 {[%clk 0:02:55]} 8. Be2 {[%clk 0:02:35]}  exd5 {[%clk 0:02:54]} 9. cxd5 {[%clk 0:02:36]}  a6 {[%clk 0:02:54]} 10. a4 {[%clk 0:02:36]}  h5 {[%clk 0:02:54]} 11. Bg5 {[%clk 0:02:36]}  Qa5 {[%clk 0:02:51]} 12. O-O {[%clk 0:02:34]}  Re8 {[%clk 0:02:45]} 13. Qd2 {[%clk 0:02:33]}  Nh7 {[%clk 0:02:43]} 14. Bh4 {[%clk 0:02:25]}  Nd7 {[%clk 0:02:36]} 15. f4 {[%clk 0:02:24]}  Bd4+ {[%clk 0:02:21]} 16. Kh1 {[%clk 0:02:18]}  Ndf6 {[%clk 0:02:19]} 17. e5 {[%clk 0:01:43]}  Ng4 {[%clk 0:02:12]} 18. Bxg4 {[%clk 0:01:38]}  Bxg4 {[%clk 0:02:13]} 19. exd6 {[%clk 0:01:12]}  Qb6 {[%clk 0:01:44]} 20. f5 {[%clk 0:00:53]}  Qxd6 {[%clk 0:01:30]} 21. Nge4 {[%clk 0:00:51]}  Rxe4 {[%clk 0:01:21]} 22. Nxe4 {[%clk 0:00:51]}  Qxd5 {[%clk 0:01:22]} 23. fxg6 {[%clk 0:00:48]}  fxg6 {[%clk 0:01:22]} 24. Nf6+ {[%clk 0:00:44]}  Nxf6 {[%clk 0:01:21]} 25. Bxf6 {[%clk 0:00:44]}  Bf5 {[%clk 0:01:19]} 26. Rad1 {[%clk 0:00:39]}  Bg4 {[%clk 0:01:15]} 27. Qh6 {[%clk 0:00:34]}  Bf5 {[%clk 0:01:11]} 28. Qg7# {[%clk 0:00:34]} 1-0


[Site "https://www.chess.com"]

[Event "Titled Tuesday Blitz April 25 Early 2023"]
[White "Garv Gaur"]
[Black "Putri, Regita Desyari"]
[WhiteFideId "45030839"]
[BlackFideId "7109083"]
[WhiteElo "2068"]
[BlackElo "1930"]
[Result "1-0"]
[Round "11"]
[TimeControl "180+2"]
[Date "2023.04.25"]
[WhiteClock "0:01:33"]
[BlackClock "0:00:01"]

1. Nf3 {[%clk 0:03:00]}  d5 {[%clk 0:02:59]} 2. e3 {[%clk 0:02:58]}  Nf6 {[%clk 0:02:59]} 3. b3 {[%clk 0:02:57]}  e6 {[%clk 0:03:00]} 4. Bb2 {[%clk 0:02:55]}  Be7 {[%clk 0:03:00]} 5. g3 {[%clk 0:02:50]}  O-O {[%clk 0:03:00]} 6. Bg2 {[%clk 0:02:49]}  b6 {[%clk 0:02:57]} 7. O-O {[%clk 0:02:48]}  Bb7 {[%clk 0:02:57]} 8. d3 {[%clk 0:02:48]}  Nbd7 {[%clk 0:02:57]} 9. Nbd2 {[%clk 0:02:49]}  c5 {[%clk 0:02:57]} 10. Qe2 {[%clk 0:02:49]}  Rc8 {[%clk 0:02:54]} 11. e4 {[%clk 0:02:47]}  d4 {[%clk 0:02:53]} 12. a4 {[%clk 0:02:44]}  a6 {[%clk 0:02:21]} 13. c3 {[%clk 0:02:29]}  e5 {[%clk 0:02:09]} 14. Nc4 {[%clk 0:02:25]}  Qc7 {[%clk 0:02:02]} 15. cxd4 {[%clk 0:02:21]}  exd4 {[%clk 0:02:01]} 16. Bc1 {[%clk 0:02:14]}  b5 {[%clk 0:01:21]} 17. Bf4 {[%clk 0:02:13]}  Qd8 {[%clk 0:01:21]} 18. Nd6 {[%clk 0:02:05]}  Bxd6 {[%clk 0:01:21]} 19. Bxd6 {[%clk 0:02:06]}  Re8 {[%clk 0:01:22]} 20. axb5 {[%clk 0:02:04]}  axb5 {[%clk 0:01:21]} 21. Bh3 {[%clk 0:02:02]}  Ra8 {[%clk 0:01:16]} 22. Qc2 {[%clk 0:01:53]}  c4 {[%clk 0:00:47]} 23. bxc4 {[%clk 0:01:51]}  bxc4 {[%clk 0:00:46]} 24. Qxc4 {[%clk 0:01:49]}  Rxa1 {[%clk 0:00:04]} 25. Rxa1 {[%clk 0:01:48]}  Nb6 {[%clk 0:00:05]} 26. Qb4 {[%clk 0:01:43]}  Bc6 {[%clk 0:00:02]} 27. Bc5 {[%clk 0:01:33]}  Nbd7 {[%clk 0:00:01]} 28. Bxd4 {[%clk 0:01:33]} 1-0


[Site "https://www.chess.com"]

[Event "Titled Tuesday Blitz April 25 Early 2023"]
[White "Pourkashiyan, Atousa"]
[Black "egorchess95"]
[WhiteFideId "12502014"]
[WhiteElo "2228"]
[BlackElo "2525"]
[Result "1-0"]
[Round "11"]
[TimeControl "180+2"]
[Date "2023.04.25"]
[WhiteClock "0:00:10"]
[BlackClock "0:00:25"]

1. e4 {[%clk 0:02:39]}  e6 {[%clk 0:02:58]} 2. d4 {[%clk 0:02:36]}  d5 {[%clk 0:02:59]} 3. Nd2 {[%clk 0:02:35]}  dxe4 {[%clk 0:02:58]} 4. Nxe4 {[%clk 0:02:36]}  Nd7 {[%clk 0:02:58]} 5. Nf3 {[%clk 0:02:35]}  Ngf6 {[%clk 0:02:59]} 6. Nxf6+ {[%clk 0:02:35]}  Nxf6 {[%clk 0:03:00]} 7. Bg5 {[%clk 0:02:35]}  Be7 {[%clk 0:02:59]} 8. Bd3 {[%clk 0:02:35]}  O-O {[%clk 0:02:59]} 9. O-O {[%clk 0:02:36]}  b6 {[%clk 0:02:59]} 10. Qe2 {[%clk 0:02:36]}  Bb7 {[%clk 0:02:59]} 11. Rad1 {[%clk 0:02:36]}  Rc8 {[%clk 0:02:57]} 12. c3 {[%clk 0:02:36]}  Nd5 {[%clk 0:02:51]} 13. Bc1 {[%clk 0:02:34]}  Bf6 {[%clk 0:02:35]} 14. Qe4 {[%clk 0:02:26]}  g6 {[%clk 0:02:34]} 15. c4 {[%clk 0:02:27]}  Nc3 {[%clk 0:02:14]} 16. Qxb7 {[%clk 0:02:26]}  Nxd1 {[%clk 0:02:14]} 17. Rxd1 {[%clk 0:02:27]}  Bxd4 {[%clk 0:02:11]} 18. Be2 {[%clk 0:02:04]}  c5 {[%clk 0:02:08]} 19. Bg5 {[%clk 0:01:46]}  f6 {[%clk 0:02:07]} 20. Be3 {[%clk 0:01:38]}  e5 {[%clk 0:02:05]} 21. b3 {[%clk 0:01:10]}  Rf7 {[%clk 0:02:04]} 22. Qe4 {[%clk 0:01:06]}  Rd7 {[%clk 0:02:01]} 23. Bxd4 {[%clk 0:00:56]}  exd4 {[%clk 0:01:54]} 24. Bd3 {[%clk 0:00:55]}  Re7 {[%clk 0:01:53]} 25. Qf4 {[%clk 0:00:55]}  Rc6 {[%clk 0:01:44]} 26. h4 {[%clk 0:00:55]}  Kg7 {[%clk 0:01:42]} 27. h5 {[%clk 0:00:54]}  Qd6 {[%clk 0:01:39]} 28. Qg4 {[%clk 0:00:50]}  f5 {[%clk 0:01:34]} 29. Bxf5 {[%clk 0:00:50]}  Qf6 {[%clk 0:01:32]} 30. hxg6 {[%clk 0:00:48]}  hxg6 {[%clk 0:01:33]} 31. Nh4 {[%clk 0:00:45]}  Re5 {[%clk 0:01:20]} 32. Bxg6 {[%clk 0:00:23]}  Rg5 {[%clk 0:01:00]} 33. Qd7+ {[%clk 0:00:23]}  Kg8 {[%clk 0:00:55]} 34. Bh7+ {[%clk 0:00:17]}  Kf8 {[%clk 0:00:29]} 35. Re1 {[%clk 0:00:17]}  Qf7 {[%clk 0:00:28]} 36. Qxc6 {[%clk 0:00:10]}  Qxh7 {[%clk 0:00:28]} 37. Qf6+ {[%clk 0:00:10]}  Qf7 {[%clk 0:00:25]} 38. Qxg5 {[%clk 0:00:10]}  d3 {[%clk 0:00:26]} 39. Ng6+ {[%clk 0:00:10]}  Kg7 {[%clk 0:00:25]} 40. Ne5+ {[%clk 0:00:10]}  Kf8 {[%clk 0:00:23]} 41. Nxf7 {[%clk 0:00:10]}  d2 {[%clk 0:00:24]} 42. Qe7+ {[%clk 0:00:10]}  Kg7 {[%clk 0:00:24]} 43. Rd1 {[%clk 0:00:10]}  Kg8 {[%clk 0:00:25]} 44. Ne5 {[%clk 0:00:10]} 1-0


[Site "https://www.chess.com"]

[Event "Titled Tuesday Blitz April 25 Early 2023"]
[White "Toktomushev, Teimur"]
[Black "Bilan, Danila"]
[WhiteFideId "14176726"]
[BlackFideId "24161918"]
[WhiteElo "2116"]
[BlackElo "2182"]
[Result "0-1"]
[Round "11"]
[TimeControl "180+2"]
[Date "2023.04.25"]
[WhiteClock "0:00:10"]
[BlackClock "0:00:16"]

1. d4 {[%clk 0:02:57]}  d5 {[%clk 0:02:55]} 2. c4 {[%clk 0:02:17]}  c6 {[%clk 0:02:53]} 3. Nc3 {[%clk 0:02:17]}  Nf6 {[%clk 0:02:53]} 4. e3 {[%clk 0:02:17]}  e6 {[%clk 0:02:51]} 5. Nf3 {[%clk 0:02:18]}  Nbd7 {[%clk 0:02:50]} 6. Qc2 {[%clk 0:02:18]}  Bd6 {[%clk 0:02:49]} 7. Bd3 {[%clk 0:02:18]}  dxc4 {[%clk 0:02:45]} 8. Bxc4 {[%clk 0:02:19]}  e5 {[%clk 0:02:44]} 9. O-O {[%clk 0:02:18]}  O-O {[%clk 0:02:44]} 10. h3 {[%clk 0:02:15]}  Qe7 {[%clk 0:02:37]} 11. Bb3 {[%clk 0:02:14]}  h6 {[%clk 0:01:46]} 12. Nh4 {[%clk 0:02:13]}  Nb6 {[%clk 0:01:34]} 13. Ng6 {[%clk 0:02:11]}  Qc7 {[%clk 0:01:24]} 14. Nxf8 {[%clk 0:02:11]}  Kxf8 {[%clk 0:01:24]} 15. dxe5 {[%clk 0:02:02]}  Bxe5 {[%clk 0:01:24]} 16. e4 {[%clk 0:02:00]}  Bd7 {[%clk 0:01:07]} 17. Be3 {[%clk 0:01:58]}  Re8 {[%clk 0:01:05]} 18. Rae1 {[%clk 0:01:25]}  Qc8 {[%clk 0:01:01]} 19. f4 {[%clk 0:01:11]}  Bxc3 {[%clk 0:00:50]} 20. Bc5+ {[%clk 0:01:02]}  Kg8 {[%clk 0:00:48]} 21. bxc3 {[%clk 0:01:02]}  Be6 {[%clk 0:00:45]} 22. Bxb6 {[%clk 0:00:55]}  axb6 {[%clk 0:00:44]} 23. e5 {[%clk 0:00:39]}  Bxb3 {[%clk 0:00:32]} 24. axb3 {[%clk 0:00:40]}  Nd5 {[%clk 0:00:31]} 25. c4 {[%clk 0:00:29]}  Nb4 {[%clk 0:00:31]} 26. Qd2 {[%clk 0:00:29]}  c5 {[%clk 0:00:30]} 27. f5 {[%clk 0:00:28]}  Nc6 {[%clk 0:00:21]} 28. Qf4 {[%clk 0:00:21]}  Qd8 {[%clk 0:00:13]} 29. f6 {[%clk 0:00:05]}  Qd4+ {[%clk 0:00:13]} 30. Qxd4 {[%clk 0:00:05]}  Nxd4 {[%clk 0:00:14]} 31. Re3 {[%clk 0:00:03]}  g5 {[%clk 0:00:13]} 32. h4 {[%clk 0:00:03]}  Kh7 {[%clk 0:00:13]} 33. hxg5 {[%clk 0:00:03]}  hxg5 {[%clk 0:00:14]} 34. Rh3+ {[%clk 0:00:02]}  Kg6 {[%clk 0:00:14]} 35. Re3 {[%clk 0:00:03]}  Nc6 {[%clk 0:00:08]} 36. Rfe1 {[%clk 0:00:03]}  Re6 {[%clk 0:00:07]} 37. Kf2 {[%clk 0:00:03]}  Kf5 {[%clk 0:00:07]} 38. Rf3+ {[%clk 0:00:03]}  Kg6 {[%clk 0:00:08]} 39. Rfe3 {[%clk 0:00:04]}  Nd4 {[%clk 0:00:08]} 40. Ra1 {[%clk 0:00:02]}  Nc2 {[%clk 0:00:08]} 41. Ra7 {[%clk 0:00:02]}  Nxe3 {[%clk 0:00:08]} 42. Kxe3 {[%clk 0:00:03]}  Rxe5+ {[%clk 0:00:09]} 43. Kf3 {[%clk 0:00:04]}  Rf5+ {[%clk 0:00:09]} 44. Kg3 {[%clk 0:00:03]}  Rxf6 {[%clk 0:00:10]} 45. Rxb7 {[%clk 0:00:03]}  Rd6 {[%clk 0:00:10]} 46. Kh2 {[%clk 0:00:02]}  f6 {[%clk 0:00:09]} 47. Rb8 {[%clk 0:00:02]}  Kf5 {[%clk 0:00:09]} 48. Kg3 {[%clk 0:00:03]}  Ke5 {[%clk 0:00:10]} 49. Kf2 {[%clk 0:00:03]}  Kd4 {[%clk 0:00:10]} 50. Re8 {[%clk 0:00:02]}  Kc3 {[%clk 0:00:10]} 51. Re3+ {[%clk 0:00:02]}  Kc2 {[%clk 0:00:10]} 52. Rf3 {[%clk 0:00:02]}  Rd2+ {[%clk 0:00:09]} 53. Kg3 {[%clk 0:00:02]}  Rd3 {[%clk 0:00:09]} 54. Kg4 {[%clk 0:00:02]}  Rxf3 {[%clk 0:00:09]} 55. gxf3 {[%clk 0:00:03]}  Kxb3 {[%clk 0:00:09]} 56. Kf5 {[%clk 0:00:04]}  Kxc4 {[%clk 0:00:10]} 57. Kxf6 {[%clk 0:00:05]}  b5 {[%clk 0:00:10]} 58. Kxg5 {[%clk 0:00:06]}  b4 {[%clk 0:00:11]} 59. f4 {[%clk 0:00:06]}  b3 {[%clk 0:00:11]} 60. f5 {[%clk 0:00:07]}  b2 {[%clk 0:00:12]} 61. f6 {[%clk 0:00:08]}  b1=Q {[%clk 0:00:13]} 62. f7 {[%clk 0:00:09]}  Qf1 {[%clk 0:00:13]} 63. Kg6 {[%clk 0:00:09]}  Qxf7+ {[%clk 0:00:14]} 64. Kxf7 {[%clk 0:00:10]}  Kd3 {[%clk 0:00:15]} 65. Kf6 {[%clk 0:00:10]}  c4 {[%clk 0:00:16]} 0-1


[Site "https://www.chess.com"]

[Event "Titled Tuesday Blitz April 25 Early 2023"]
[White "Inepton_Fermion"]
[Black "Lorenzo De La Riva, Lazaro"]
[BlackFideId "2268809"]
[WhiteElo "2353"]
[BlackElo "2294"]
[Result "1-0"]
[Round "11"]
[TimeControl "180+2"]
[Date "2023.04.25"]
[WhiteClock "0:00:19"]
[BlackClock "0:00:12"]

1. e4 {[%clk 0:03:00]}  c6 {[%clk 0:03:00]} 2. d4 {[%clk 0:02:56]}  d5 {[%clk 0:03:01]} 3. Nc3 {[%clk 0:02:56]}  dxe4 {[%clk 0:03:01]} 4. Nxe4 {[%clk 0:02:57]}  Nf6 {[%clk 0:03:01]} 5. Nxf6+ {[%clk 0:02:57]}  exf6 {[%clk 0:03:02]} 6. Bd3 {[%clk 0:02:56]}  Bd6 {[%clk 0:03:03]} 7. c3 {[%clk 0:02:57]}  O-O {[%clk 0:03:02]} 8. Qc2 {[%clk 0:02:57]}  Re8+ {[%clk 0:03:02]} 9. Ne2 {[%clk 0:02:58]}  h5 {[%clk 0:03:03]} 10. Be3 {[%clk 0:02:54]}  Nd7 {[%clk 0:02:59]} 11. O-O-O {[%clk 0:02:52]}  Nf8 {[%clk 0:02:59]} 12. h3 {[%clk 0:02:43]}  Be6 {[%clk 0:02:59]} 13. Nf4 {[%clk 0:02:41]}  Bxf4 {[%clk 0:02:54]} 14. Bxf4 {[%clk 0:02:41]}  Qa5 {[%clk 0:02:53]} 15. b3 {[%clk 0:02:36]}  c5 {[%clk 0:02:48]} 16. dxc5 {[%clk 0:02:24]}  Qxc5 {[%clk 0:02:47]} 17. Be3 {[%clk 0:02:24]}  Qa5 {[%clk 0:02:45]} 18. Kb2 {[%clk 0:02:23]}  Qc7 {[%clk 0:02:39]} 19. Be4 {[%clk 0:02:17]}  a5 {[%clk 0:02:37]} 20. Bf3 {[%clk 0:02:01]}  a4 {[%clk 0:02:36]} 21. Bxh5 {[%clk 0:01:58]}  axb3 {[%clk 0:02:36]} 22. axb3 {[%clk 0:01:59]}  Ra5 {[%clk 0:02:31]} 23. Be2 {[%clk 0:01:53]}  Rea8 {[%clk 0:02:29]} 24. Ra1 {[%clk 0:01:54]}  Qe7 {[%clk 0:02:24]} 25. Rxa5 {[%clk 0:01:47]}  Rxa5 {[%clk 0:02:23]} 26. Ra1 {[%clk 0:01:46]}  Rxa1 {[%clk 0:02:20]} 27. Kxa1 {[%clk 0:01:46]}  Bd5 {[%clk 0:02:20]} 28. g3 {[%clk 0:01:39]}  Ne6 {[%clk 0:01:53]} 29. Kb2 {[%clk 0:01:38]}  Nc5 {[%clk 0:01:41]} 30. c4 {[%clk 0:01:32]}  Be6 {[%clk 0:01:38]} 31. Qd2 {[%clk 0:01:25]}  Bxh3 {[%clk 0:01:28]} 32. Qd4 {[%clk 0:01:21]}  Ne6 {[%clk 0:01:26]} 33. Qb6 {[%clk 0:01:15]}  Bg2 {[%clk 0:01:25]} 34. Bg4 {[%clk 0:01:06]}  Ng5 {[%clk 0:01:15]} 35. Qc5 {[%clk 0:00:52]}  Qxc5 {[%clk 0:00:48]} 36. Bxc5 {[%clk 0:00:53]}  Ne6 {[%clk 0:00:43]} 37. Be3 {[%clk 0:00:51]}  g6 {[%clk 0:00:42]} 38. b4 {[%clk 0:00:44]}  f5 {[%clk 0:00:43]} 39. Be2 {[%clk 0:00:43]}  Kf8 {[%clk 0:00:39]} 40. b5 {[%clk 0:00:41]}  Ke7 {[%clk 0:00:39]} 41. c5 {[%clk 0:00:38]}  Nc7 {[%clk 0:00:33]} 42. Kc3 {[%clk 0:00:37]}  Nd5+ {[%clk 0:00:31]} 43. Kd4 {[%clk 0:00:36]}  Nxe3 {[%clk 0:00:30]} 44. Kxe3 {[%clk 0:00:34]}  g5 {[%clk 0:00:26]} 45. f4 {[%clk 0:00:23]}  f6 {[%clk 0:00:24]} 46. Kd4 {[%clk 0:00:19]}  Be4 {[%clk 0:00:20]} 47. Bc4 {[%clk 0:00:19]}  Kd7 {[%clk 0:00:19]} 48. Bd5 {[%clk 0:00:19]}  Bxd5 {[%clk 0:00:07]} 49. Kxd5 {[%clk 0:00:20]}  Ke7 {[%clk 0:00:08]} 50. c6 {[%clk 0:00:19]}  b6 {[%clk 0:00:05]} 51. c7 {[%clk 0:00:16]}  Kd7 {[%clk 0:00:05]} 52. c8=Q+ {[%clk 0:00:16]}  Kxc8 {[%clk 0:00:05]} 53. Ke6 {[%clk 0:00:17]}  Kc7 {[%clk 0:00:03]} 54. Kxf5 {[%clk 0:00:13]}  gxf4 {[%clk 0:00:04]} 55. gxf4 {[%clk 0:00:13]}  Kd6 {[%clk 0:00:05]} 56. Kxf6 {[%clk 0:00:13]}  Kc5 {[%clk 0:00:06]} 57. f5 {[%clk 0:00:14]}  Kxb5 {[%clk 0:00:06]} 58. Ke5 {[%clk 0:00:14]}  Kc4 {[%clk 0:00:06]} 59. f6 {[%clk 0:00:15]}  b5 {[%clk 0:00:07]} 60. f7 {[%clk 0:00:16]}  b4 {[%clk 0:00:08]} 61. f8=Q {[%clk 0:00:17]}  b3 {[%clk 0:00:08]} 62. Qc8+ {[%clk 0:00:17]}  Kd3 {[%clk 0:00:09]} 63. Qb7 {[%clk 0:00:17]}  Kc2 {[%clk 0:00:09]} 64. Qc6+ {[%clk 0:00:18]}  Kd2 {[%clk 0:00:09]} 65. Qb5 {[%clk 0:00:18]}  Kc3 {[%clk 0:00:08]} 66. Qc5+ {[%clk 0:00:18]}  Kd3 {[%clk 0:00:09]} 67. Qb4 {[%clk 0:00:19]}  Kc2 {[%clk 0:00:10]} 68. Qc4+ {[%clk 0:00:19]}  Kb2 {[%clk 0:00:10]} 69. Kd4 {[%clk 0:00:19]}  Ka3 {[%clk 0:00:11]} 70. Qa6+ {[%clk 0:00:19]}  Kb2 {[%clk 0:00:11]} 71. Kc4 {[%clk 0:00:19]}  Kc2 {[%clk 0:00:12]} 72. Qa4 {[%clk 0:00:19]}  Kc1 {[%clk 0:00:11]} 73. Qxb3 {[%clk 0:00:19]}  Kd2 {[%clk 0:00:12]} 74. Qd3+ {[%clk 0:00:19]} 1-0


[Site "https://www.chess.com"]